[Event "*** Titled Tuesday Blitz"]
[Site "Chess.com"]
[Date "2020.05.19"]
[Round "9"]
[White "JuliaEfremova"]
[Black "XDPS"]
[Result "0-1"]
[WhiteElo "2136"]
[BlackElo "2662"]
[TimeControl "180+1"]
[EndTime "13:47:09 PDT"]
[Termination "XDPS won by checkmate"]

1. d4 {[%clk 0:02:59.4]} 1... d5 {[%clk 0:02:59.3]} 2. Bf4 {[%clk 0:02:58.4]}
2... Nf6 {[%clk 0:02:56.7]} 3. Nf3 {[%clk 0:02:55.4]} 3... e6 {[%clk 0:02:56]}
4. e3 {[%clk 0:02:54.5]} 4... Bd6 {[%clk 0:02:51.1]} 5. Ne5 {[%clk 0:02:53.1]}
5... O-O {[%clk 0:02:50.3]} 6. Bd3 {[%clk 0:02:51.4]} 6... b6 {[%clk 0:02:39.4]}
7. Nd2 {[%clk 0:02:44.9]} 7... Ba6 {[%clk 0:02:39.4]} 8. Ndf3 {[%clk 0:02:44]}
8... Bxd3 {[%clk 0:02:38.7]} 9. cxd3 {[%clk 0:02:43.5]} 9... c5 {[%clk
0:02:37.1]} 10. dxc5 {[%clk 0:02:40.2]} 10... bxc5 {[%clk 0:02:34.4]} 11. O-O
{[%clk 0:02:35.3]} 11... Nh5 {[%clk 0:02:32.3]} 12. d4 {[%clk 0:02:18.5]} 12...
Nxf4 {[%clk 0:02:29.9]} 13. exf4 {[%clk 0:02:15.3]} 13... Nd7 {[%clk 0:02:21.3]}
14. dxc5 {[%clk 0:02:02]} 14... Nxc5 {[%clk 0:02:19.3]} 15. Nd4 {[%clk
0:01:54.9]} 15... Qb6 {[%clk 0:02:18.5]} 16. b3 {[%clk 0:01:44.8]} 16... Rfc8
{[%clk 0:02:17.1]} 17. Qh5 {[%clk 0:01:39.9]} 17... Bxe5 {[%clk 0:02:03.2]} 18.
Qxe5 {[%clk 0:01:34.7]} 18... Qc7 {[%clk 0:01:03.9]} 19. Qe3 {[%clk 0:01:31.7]}
19... Ne4 {[%clk 0:00:38.9]} 20. Rfe1 {[%clk 0:01:26.8]} 20... Qc3 {[%clk
0:00:30.4]} 21. Rac1 {[%clk 0:01:08.6]} 21... Qxe3 {[%clk 0:00:30]} 22. fxe3
{[%clk 0:01:09.5]} 22... Nc3 {[%clk 0:00:21.5]} 23. a4 {[%clk 0:01:05.7]} 23...
Rab8 {[%clk 0:00:20.7]} 24. Kf1 {[%clk 0:00:57.3]} 24... Kf8 {[%clk 0:00:19.6]}
25. g4 {[%clk 0:00:55.4]} 25... Ke8 {[%clk 0:00:17.9]} 26. g5 {[%clk 0:00:55.6]}
26... Kd7 {[%clk 0:00:18.1]} 27. h4 {[%clk 0:00:55.7]} 27... a6 {[%clk
0:00:17.5]} 28. h5 {[%clk 0:00:55.8]} 28... Ne4 {[%clk 0:00:17.4]} 29. Kg2
{[%clk 0:00:53.1]} 29... f6 {[%clk 0:00:16.6]} 30. Red1 {[%clk 0:00:41.7]} 30...
Kd6 {[%clk 0:00:11.6]} 31. g6 {[%clk 0:00:39.2]} 31... hxg6 {[%clk 0:00:11.6]}
32. hxg6 {[%clk 0:00:40.1]} 32... Kd7 {[%clk 0:00:05.7]} 33. Kf3 {[%clk
0:00:38.7]} 33... Nd6 {[%clk 0:00:05.6]} 34. Ke2 {[%clk 0:00:35.8]} 34... e5
{[%clk 0:00:06]} 35. Rxc8 {[%clk 0:00:31.1]} 35... Rxc8 {[%clk 0:00:05.4]} 36.
fxe5 {[%clk 0:00:30.9]} 36... fxe5 {[%clk 0:00:05.5]} 37. Nf3 {[%clk 0:00:29.4]}
37... Rc2+ {[%clk 0:00:04.9]} 38. Kd3 {[%clk 0:00:26]} 38... Rg2 {[%clk
0:00:03.7]} 39. Nxe5+ {[%clk 0:00:25.9]} 39... Ke6 {[%clk 0:00:04.3]} 40. Nc6
{[%clk 0:00:23]} 40... Ne4 {[%clk 0:00:03.2]} 41. Nb4 {[%clk 0:00:19.8]} 41...
Rxg6 {[%clk 0:00:01.3]} 42. Rc1 {[%clk 0:00:18.8]} 42... Ke5 {[%clk 0:00:01.4]}
43. Nc6+ {[%clk 0:00:17.6]} 43... Kd6 {[%clk 0:00:01.8]} 44. Nd4 {[%clk
0:00:17.5]} 44... Rg2 {[%clk 0:00:02.4]} 45. Nf5+ {[%clk 0:00:17.6]} 45... Ke5
{[%clk 0:00:02.3]} 46. Nd4 {[%clk 0:00:17.4]} 46... Rd2# {[%clk 0:00:02.6]} 0-1

[Event "*** Titled Tuesday Blitz"]
[Site "Chess.com"]
[Date "2020.05.19"]
[Round "9"]
[White "GM4life"]
[Black "Piotrek1979"]
[Result "1-0"]
[WhiteElo "2230"]
[BlackElo "2344"]
[TimeControl "180+1"]
[EndTime "13:47:09 PDT"]
[Termination "GM4life won by resignation"]

1. d4 {[%clk 0:03:00.9]} 1... Nf6 {[%clk 0:02:58.4]} 2. c4 {[%clk 0:03:00.8]}
2... c5 {[%clk 0:02:58.7]} 3. d5 {[%clk 0:03:00.2]} 3... e5 {[%clk 0:02:59.3]}
4. Nc3 {[%clk 0:02:59.2]} 4... d6 {[%clk 0:02:59.7]} 5. e4 {[%clk 0:02:58.4]}
5... Be7 {[%clk 0:03:00.3]} 6. Nf3 {[%clk 0:02:53.1]} 6... Nbd7 {[%clk
0:02:59.8]} 7. Be2 {[%clk 0:02:53.2]} 7... h5 {[%clk 0:02:58.4]} 8. O-O {[%clk
0:02:54.1]} 8... h4 {[%clk 0:02:58.2]} 9. h3 {[%clk 0:02:53.4]} 9... a6 {[%clk
0:02:57]} 10. a3 {[%clk 0:02:52.5]} 10... Nf8 {[%clk 0:02:52]} 11. b4 {[%clk
0:02:49.9]} 11... b6 {[%clk 0:02:52.1]} 12. Be3 {[%clk 0:02:49.1]} 12... Ng6
{[%clk 0:02:49.6]} 13. Nd2 {[%clk 0:02:42.5]} 13... Nf4 {[%clk 0:02:46.2]} 14.
Bxf4 {[%clk 0:02:41.4]} 14... exf4 {[%clk 0:02:46.2]} 15. Nf3 {[%clk 0:02:38.4]}
15... Nd7 {[%clk 0:02:44.4]} 16. bxc5 {[%clk 0:02:34.5]} 16... bxc5 {[%clk
0:02:39.1]} 17. Qd2 {[%clk 0:02:24.5]} 17... Bf6 {[%clk 0:02:33.5]} 18. Rab1
{[%clk 0:02:20.6]} 18... O-O {[%clk 0:02:27.5]} 19. Rb3 {[%clk 0:02:09.9]} 19...
g5 {[%clk 0:02:09]} 20. Nh2 {[%clk 0:02:02.8]} 20... Ne5 {[%clk 0:02:04.4]} 21.
Na4 {[%clk 0:02:02.5]} 21... Bg7 {[%clk 0:00:56.5]} 22. Rfb1 {[%clk 0:01:59.3]}
22... f5 {[%clk 0:00:56.4]} 23. Nb6 {[%clk 0:01:58.1]} 23... Ra7 {[%clk
0:00:44]} 24. Nxc8 {[%clk 0:01:56.4]} 24... Qxc8 {[%clk 0:00:44.4]} 25. exf5
{[%clk 0:01:56.6]} 25... Qxf5 {[%clk 0:00:43.5]} 26. Nf3 {[%clk 0:01:48.5]}
26... Re7 {[%clk 0:00:24.7]} 27. Nxe5 {[%clk 0:01:48]} 27... Qxe5 {[%clk
0:00:23.5]} 28. Bg4 {[%clk 0:01:41.7]} 28... f3 {[%clk 0:00:22]} 29. Re3 {[%clk
0:01:34.7]} 29... Qf4 {[%clk 0:00:20]} 30. Be6+ {[%clk 0:00:49.6]} 30... Kh8
{[%clk 0:00:19.5]} 31. gxf3 {[%clk 0:00:32.9]} 31... Be5 {[%clk 0:00:19.3]} 32.
Kf1 {[%clk 0:00:23.9]} 32... Qh2 {[%clk 0:00:19.3]} 33. Ke2 {[%clk 0:00:23.7]}
33... Rxe6 {[%clk 0:00:18.2]} 34. dxe6 {[%clk 0:00:23.7]} 34... Qxh3 {[%clk
0:00:19.1]} 35. Rb7 {[%clk 0:00:22]} 35... Qxe6 {[%clk 0:00:18.1]} 36. Qd5
{[%clk 0:00:21.2]} 36... Qxd5 {[%clk 0:00:17.5]} 37. cxd5 {[%clk 0:00:21.4]}
37... h3 {[%clk 0:00:17]} 38. Rb1 {[%clk 0:00:20.5]} 38... h2 {[%clk 0:00:17]}
39. Reb3 {[%clk 0:00:19.4]} 39... Re8 {[%clk 0:00:15.9]} 40. Re3 {[%clk
0:00:17.5]} 40... Kg7 {[%clk 0:00:15.2]} 41. Rh1 {[%clk 0:00:18]} 41... Rb8
{[%clk 0:00:14.5]} 42. Kd3 {[%clk 0:00:17.6]} 42... Rb3+ {[%clk 0:00:14]} 43.
Ke4 {[%clk 0:00:18]} 43... Kg6 {[%clk 0:00:13.5]} 44. Rxb3 {[%clk 0:00:17.7]}
44... c4 {[%clk 0:00:13.6]} 45. Rb6 {[%clk 0:00:17.7]} 45... c3 {[%clk
0:00:13.1]} 46. Rc6 {[%clk 0:00:18.6]} 46... a5 {[%clk 0:00:12.9]} 47. Kd3
{[%clk 0:00:17.9]} 47... Kf5 {[%clk 0:00:12.5]} 48. Rxc3 {[%clk 0:00:18.2]}
48... Kf4 {[%clk 0:00:11.6]} 49. Rxh2 {[%clk 0:00:18.2]} 49... Kxf3 {[%clk
0:00:10.8]} 50. Rh3+ {[%clk 0:00:17.7]} 50... Kxf2 {[%clk 0:00:11.2]} 51. Rc4
{[%clk 0:00:16.4]} 51... g4 {[%clk 0:00:11.2]} 52. Rxg4 {[%clk 0:00:16.6]} 1-0

[Event "*** Titled Tuesday Blitz"]
[Site "Chess.com"]
[Date "2020.05.19"]
[Round "9"]
[White "hansen"]
[Black "BanjoKazooieN64"]
[Result "1-0"]
[WhiteElo "2931"]
[BlackElo "2548"]
[TimeControl "180+1"]
[EndTime "13:47:10 PDT"]
[Termination "hansen won by resignation"]

1. e4 {[%clk 0:03:00.9]} 1... e6 {[%clk 0:02:46.4]} 2. d4 {[%clk 0:03:01]} 2...
d5 {[%clk 0:02:46.4]} 3. Nc3 {[%clk 0:03:01.9]} 3... Bb4 {[%clk 0:02:45.9]} 4.
e5 {[%clk 0:03:01.8]} 4... c5 {[%clk 0:02:45.4]} 5. a3 {[%clk 0:03:02.3]} 5...
Bxc3+ {[%clk 0:02:45.8]} 6. bxc3 {[%clk 0:03:03.2]} 6... Ne7 {[%clk 0:02:46.2]}
7. h4 {[%clk 0:03:02.4]} 7... b6 {[%clk 0:02:45.9]} 8. Bb5+ {[%clk 0:03:01.9]}
8... Bd7 {[%clk 0:02:45.6]} 9. Bd3 {[%clk 0:03:02.6]} 9... c4 {[%clk 0:02:45]}
10. Be2 {[%clk 0:02:59.8]} 10... Ba4 {[%clk 0:02:45.2]} 11. h5 {[%clk
0:03:00.2]} 11... h6 {[%clk 0:02:45.6]} 12. Nh3 {[%clk 0:03:00.5]} 12... Kd7
{[%clk 0:02:45.8]} 13. Nf4 {[%clk 0:02:59.6]} 13... Qg8 {[%clk 0:02:45.5]} 14.
Bg4 {[%clk 0:02:58.8]} 14... Qh7 {[%clk 0:02:44.4]} 15. Ra2 {[%clk 0:02:59.4]}
15... Nbc6 {[%clk 0:02:43.1]} 16. Kf1 {[%clk 0:02:57.7]} 16... b5 {[%clk
0:02:40.7]} 17. Kg1 {[%clk 0:02:53.9]} 17... a5 {[%clk 0:02:40.3]} 18. Qf3
{[%clk 0:02:54.4]} 18... Kc7 {[%clk 0:02:39.9]} 19. Rb2 {[%clk 0:02:13.3]} 19...
Rhb8 {[%clk 0:02:38.1]} 20. Bxe6 {[%clk 0:02:09.2]} 20... fxe6 {[%clk
0:02:37.7]} 21. Nxe6+ {[%clk 0:02:10.1]} 21... Kb6 {[%clk 0:02:31.5]} 22. Nc5
{[%clk 0:02:09.8]} 22... Ka7 {[%clk 0:02:29.9]} 23. e6 {[%clk 0:02:03.4]} 23...
Qf5 {[%clk 0:01:35.7]} 24. Qg3 {[%clk 0:02:03.6]} 24... Rc8 {[%clk 0:01:35.1]}
25. Rh4 {[%clk 0:02:04.1]} 25... Bxc2 {[%clk 0:01:24.1]} 26. Rxb5 {[%clk
0:01:54.3]} 26... Nd8 {[%clk 0:01:22.6]} 27. Rxa5+ {[%clk 0:01:34.1]} 27... Kb6
{[%clk 0:01:22.3]} 28. Rxa8 {[%clk 0:01:27.1]} 28... Rxa8 {[%clk 0:01:22.4]} 29.
Qd6+ {[%clk 0:01:26.2]} 29... Ndc6 {[%clk 0:01:12.9]} 30. Bf4 {[%clk 0:01:26.2]}
30... Kb5 {[%clk 0:01:00.4]} 31. Nd7 {[%clk 0:01:23.6]} 31... Ka4 {[%clk
0:00:43.2]} 32. Nb6+ {[%clk 0:01:16.6]} 32... Kb3 {[%clk 0:00:43.2]} 33. Nxa8
{[%clk 0:01:17.2]} 33... Be4 {[%clk 0:00:40.4]} 34. Nb6 {[%clk 0:00:55.1]} 34...
Qf6 {[%clk 0:00:40.4]} 35. Bg3 {[%clk 0:00:51]} 35... Qg5 {[%clk 0:00:38.8]} 36.
Rxe4 {[%clk 0:00:41.6]} 36... dxe4 {[%clk 0:00:36.1]} 37. d5 {[%clk 0:00:42.1]}
37... Qxh5 {[%clk 0:00:33.2]} 38. f3 {[%clk 0:00:20.4]} 38... exf3 {[%clk
0:00:21.2]} 39. dxc6 {[%clk 0:00:20.2]} 39... fxg2 {[%clk 0:00:21.4]} 40. Bh2
{[%clk 0:00:14.3]} 40... Qf3 {[%clk 0:00:19.8]} 41. Qf4 {[%clk 0:00:10]} 41...
Qxf4 {[%clk 0:00:18.7]} 42. Bxf4 {[%clk 0:00:10.1]} 42... Nxc6 {[%clk
0:00:19.6]} 43. Nd5 {[%clk 0:00:09.5]} 43... Kxa3 {[%clk 0:00:19.5]} 44. e7
{[%clk 0:00:09.2]} 44... Nxe7 {[%clk 0:00:19.5]} 45. Nxe7 {[%clk 0:00:10.1]}
45... Kb3 {[%clk 0:00:20.2]} 46. Be5 {[%clk 0:00:10.6]} 46... g5 {[%clk
0:00:19.4]} 47. Kxg2 {[%clk 0:00:09.8]} 47... h5 {[%clk 0:00:19.8]} 48. Kg3
{[%clk 0:00:09.8]} 48... Kc2 {[%clk 0:00:19.5]} 49. Nf5 {[%clk 0:00:10.1]} 49...
Kd3 {[%clk 0:00:19.8]} 50. Ng7 {[%clk 0:00:10.1]} 50... h4+ {[%clk 0:00:20.3]}
51. Kg4 {[%clk 0:00:10.4]} 51... Ke4 {[%clk 0:00:21.2]} 52. Bd4 {[%clk
0:00:10.6]} 52... h3 {[%clk 0:00:20.5]} 53. Kxh3 {[%clk 0:00:10.7]} 53... Kf3
{[%clk 0:00:21.4]} 54. Nh5 {[%clk 0:00:10.7]} 54... g4+ {[%clk 0:00:22.3]} 55.
Kh4 {[%clk 0:00:11.2]} 55... g3 {[%clk 0:00:21.6]} 56. Nxg3 {[%clk 0:00:11.1]}
1-0

[Event "*** Titled Tuesday Blitz"]
[Site "Chess.com"]
[Date "2020.05.19"]
[Round "9"]
[White "DonPreuss"]
[Black "LuckSlayeer"]
[Result "0-1"]
[WhiteElo "2222"]
[BlackElo "2451"]
[TimeControl "180+1"]
[EndTime "13:47:10 PDT"]
[Termination "LuckSlayeer won by resignation"]

1. d4 {[%clk 0:03:00.9]} 1... Nf6 {[%clk 0:02:58.6]} 2. Nc3 {[%clk 0:03:00.6]}
2... d5 {[%clk 0:02:58.3]} 3. e4 {[%clk 0:03:00.8]} 3... Nxe4 {[%clk 0:02:57.5]}
4. Nxe4 {[%clk 0:03:00.7]} 4... dxe4 {[%clk 0:02:58.4]} 5. Bc4 {[%clk
0:03:01.1]} 5... e6 {[%clk 0:02:49.8]} 6. c3 {[%clk 0:02:58.4]} 6... c5 {[%clk
0:02:49.1]} 7. d5 {[%clk 0:02:57.9]} 7... exd5 {[%clk 0:02:38.6]} 8. Bxd5 {[%clk
0:02:58.8]} 8... Nc6 {[%clk 0:02:29.4]} 9. Bxc6+ {[%clk 0:02:00.5]} 9... bxc6
{[%clk 0:02:28.7]} 10. Qxd8+ {[%clk 0:02:00.9]} 10... Kxd8 {[%clk 0:02:29.1]}
11. Bg5+ {[%clk 0:02:01.4]} 11... Kc7 {[%clk 0:02:21.2]} 12. O-O-O {[%clk
0:02:01.8]} 12... Be6 {[%clk 0:02:06.4]} 13. Bf4+ {[%clk 0:01:58.5]} 13... Kb7
{[%clk 0:02:05.7]} 14. b3 {[%clk 0:01:51.6]} 14... Be7 {[%clk 0:01:59]} 15. Ne2
{[%clk 0:01:49.4]} 15... a5 {[%clk 0:01:52.9]} 16. Kb2 {[%clk 0:01:37.1]} 16...
a4 {[%clk 0:01:50.9]} 17. c4 {[%clk 0:01:36]} 17... Bf6+ {[%clk 0:01:48.5]} 18.
Nc3 {[%clk 0:01:32.3]} 18... Bf5 {[%clk 0:01:25.6]} 19. Be3 {[%clk 0:01:26.6]}
19... Rhd8 {[%clk 0:01:06.7]} 20. Kc2 {[%clk 0:01:10.6]} 20... Rd3 {[%clk
0:00:51.6]} 21. Nxa4 {[%clk 0:01:00.5]} 21... Bd4 {[%clk 0:00:45.3]} 22. Bxd4
{[%clk 0:00:52.4]} 22... cxd4 {[%clk 0:00:18.5]} 23. Nc5+ {[%clk 0:00:51]} 23...
Kb6 {[%clk 0:00:18.2]} 24. Nxd3 {[%clk 0:00:51.2]} 24... Rxa2+ {[%clk
0:00:17.9]} 25. Kb1 {[%clk 0:00:29.6]} 25... Re2 {[%clk 0:00:17.2]} 26. g4
{[%clk 0:00:21.5]} 26... Bxg4 {[%clk 0:00:07.1]} 27. Ne5 {[%clk 0:00:19.7]}
27... Bf5 {[%clk 0:00:05.8]} 28. Rxd4 {[%clk 0:00:17.9]} 28... e3+ {[%clk
0:00:06.1]} 29. Nd3 {[%clk 0:00:18.2]} 29... exf2 {[%clk 0:00:04.3]} 30. c5+
{[%clk 0:00:11.2]} 30... Kb5 {[%clk 0:00:03.2]} 31. Rb4+ {[%clk 0:00:10.1]}
31... Ka6 {[%clk 0:00:03.6]} 32. Ra4+ {[%clk 0:00:07.4]} 32... Kb7 {[%clk
0:00:04]} 33. Rd1 {[%clk 0:00:04.7]} 33... Bxd3+ {[%clk 0:00:03.6]} 34. Kc1
{[%clk 0:00:02.1]} 34... Re1 {[%clk 0:00:03.4]} 35. Rf4 {[%clk 0:00:02.5]} 35...
Rxd1+ {[%clk 0:00:02.8]} 36. Kxd1 {[%clk 0:00:01.5]} 36... f1=Q+ {[%clk
0:00:03.7]} 37. Rxf1 {[%clk 0:00:01.5]} 37... Bxf1 {[%clk 0:00:04.6]} 38. Kd2
{[%clk 0:00:02]} 38... Bh3 {[%clk 0:00:05]} 39. Kc3 {[%clk 0:00:02.3]} 39... Be6
{[%clk 0:00:05.9]} 40. Kd4 {[%clk 0:00:03.2]} 40... Bxb3 {[%clk 0:00:05.7]} 41.
Ke5 {[%clk 0:00:04.1]} 41... Be6 {[%clk 0:00:06.4]} 42. Kd6 {[%clk 0:00:05]}
42... Bd5 {[%clk 0:00:06.3]} 43. Ke7 {[%clk 0:00:05.9]} 43... f5 {[%clk
0:00:06.8]} 0-1

[Event "*** Titled Tuesday Blitz"]
[Site "Chess.com"]
[Date "2020.05.19"]
[Round "9"]
[White "IMJonathanCarlstedt"]
[Black "aaronmaster123"]
[Result "1-0"]
[WhiteElo "2458"]
[BlackElo "2269"]
[TimeControl "180+1"]
[EndTime "13:47:11 PDT"]
[Termination "IMJonathanCarlstedt won on time"]

1. d4 {[%clk 0:02:54.3]} 1... Nf6 {[%clk 0:02:38.5]} 2. Bf4 {[%clk 0:02:52.7]}
2... Nh5 {[%clk 0:02:37.7]} 3. Bd2 {[%clk 0:02:51.2]} 3... Nf6 {[%clk
0:02:36.8]} 4. Nc3 {[%clk 0:02:49.5]} 4... Nc6 {[%clk 0:02:25.4]} 5. Nf3 {[%clk
0:02:48.3]} 5... d5 {[%clk 0:02:20.4]} 6. Bg5 {[%clk 0:02:45]} 6... Bg4 {[%clk
0:02:18.3]} 7. Ne5 {[%clk 0:02:40]} 7... Nxe5 {[%clk 0:02:07.3]} 8. dxe5 {[%clk
0:02:40.9]} 8... Ne4 {[%clk 0:02:07.4]} 9. Nxe4 {[%clk 0:02:37.2]} 9... dxe4
{[%clk 0:02:08.3]} 10. h3 {[%clk 0:02:31.9]} 10... Bf5 {[%clk 0:01:58.8]} 11. g4
{[%clk 0:02:31]} 11... Bg6 {[%clk 0:01:57.7]} 12. Bg2 {[%clk 0:02:30.7]} 12...
h6 {[%clk 0:01:54.3]} 13. Be3 {[%clk 0:02:27.1]} 13... e6 {[%clk 0:01:50.2]} 14.
c3 {[%clk 0:02:18.8]} 14... h5 {[%clk 0:01:45.6]} 15. Qa4+ {[%clk 0:02:15.8]}
15... Qd7 {[%clk 0:01:43.4]} 16. Qxd7+ {[%clk 0:02:13.1]} 16... Kxd7 {[%clk
0:01:43.5]} 17. O-O-O+ {[%clk 0:02:13.1]} 17... Ke8 {[%clk 0:01:31.9]} 18. f4
{[%clk 0:01:53.3]} 18... Rd8 {[%clk 0:01:13.6]} 19. Rdf1 {[%clk 0:01:40.5]}
19... hxg4 {[%clk 0:00:49.3]} 20. hxg4 {[%clk 0:01:41.4]} 20... Rxh1 {[%clk
0:00:49.3]} 21. Bxh1 {[%clk 0:01:40]} 21... f5 {[%clk 0:00:46.6]} 22. gxf5
{[%clk 0:01:31.4]} 22... exf5 {[%clk 0:00:40]} 23. Bf2 {[%clk 0:01:20.5]} 23...
Bh5 {[%clk 0:00:38.4]} 24. Bh4 {[%clk 0:01:19.6]} 24... Rd5 {[%clk 0:00:22.2]}
25. Rd1 {[%clk 0:01:01.3]} 25... c6 {[%clk 0:00:15.3]} 26. Rxd5 {[%clk
0:00:58.8]} 26... cxd5 {[%clk 0:00:16.1]} 27. Kd2 {[%clk 0:00:59.3]} 27... Bc5
{[%clk 0:00:16.1]} 28. e3 {[%clk 0:00:59]} 28... Kd7 {[%clk 0:00:13.4]} 29. Bg2
{[%clk 0:00:57]} 29... b5 {[%clk 0:00:12]} 30. Bh3 {[%clk 0:00:55.3]} 30... g6
{[%clk 0:00:09.4]} 31. Bf1 {[%clk 0:00:54.5]} 31... a6 {[%clk 0:00:08.6]} 32. a4
{[%clk 0:00:47.5]} 32... bxa4 {[%clk 0:00:06.6]} 33. Bxa6 {[%clk 0:00:44.5]}
33... a3 {[%clk 0:00:06.8]} 34. bxa3 {[%clk 0:00:38.5]} 34... Bxa3 {[%clk
0:00:07.7]} 35. Bb7 {[%clk 0:00:38.1]} 35... Ke6 {[%clk 0:00:02.6]} 36. Bc8+
{[%clk 0:00:34.5]} 36... Kf7 {[%clk 0:00:02.1]} 37. e6+ {[%clk 0:00:34.7]} 37...
Ke8 {[%clk 0:00:01.8]} 38. Bd7+ {[%clk 0:00:32.9]} 38... Kf8 {[%clk 0:00:01.3]}
39. Bf6 {[%clk 0:00:31.2]} 39... Be7 {[%clk 0:00:02.2]} 40. Be5 {[%clk 0:00:26]}
40... Kg8 {[%clk 0:00:01.9]} 41. c4 {[%clk 0:00:23.4]} 41... g5 {[%clk
0:00:02.3]} 42. fxg5 {[%clk 0:00:19.3]} 42... dxc4 {[%clk 0:00:01.3]} 43. Bf6
{[%clk 0:00:19.4]} 43... Bxf6 {[%clk 0:00:01.5]} 44. gxf6 {[%clk 0:00:19.6]}
44... Bf7 {[%clk 0:00:02.3]} 45. e7 {[%clk 0:00:16.6]} 45... Kh7 {[%clk
0:00:01.8]} 46. Be6 {[%clk 0:00:14.4]} 46... Kg6 {[%clk 0:00:01.5]} 47. Bxc4
{[%clk 0:00:11]} 1-0

[Event "*** Titled Tuesday Blitz"]
[Site "Chess.com"]
[Date "2020.05.19"]
[Round "9"]
[White "lamomiablanca"]
[Black "chessablanca"]
[Result "0-1"]
[WhiteElo "2197"]
[BlackElo "2451"]
[TimeControl "180+1"]
[EndTime "13:47:13 PDT"]
[Termination "chessablanca won on time"]

1. e4 {[%clk 0:03:00.9]} 1... e5 {[%clk 0:03:00.2]} 2. Qh5 {[%clk 0:02:59.5]}
2... Nc6 {[%clk 0:02:59.7]} 3. Bc4 {[%clk 0:02:58.9]} 3... Qe7 {[%clk
0:02:59.1]} 4. Ne2 {[%clk 0:02:55]} 4... Nf6 {[%clk 0:02:58.9]} 5. Qf3 {[%clk
0:02:55.1]} 5... d6 {[%clk 0:02:57.4]} 6. h3 {[%clk 0:02:55.2]} 6... Be6 {[%clk
0:02:56.2]} 7. d3 {[%clk 0:02:55.3]} 7... g6 {[%clk 0:02:54.3]} 8. Bg5 {[%clk
0:02:51.9]} 8... Bg7 {[%clk 0:02:54.5]} 9. Nbc3 {[%clk 0:02:51.3]} 9... h6
{[%clk 0:02:53.8]} 10. Bxf6 {[%clk 0:02:45.8]} 10... Bxf6 {[%clk 0:02:54.7]} 11.
Nd5 {[%clk 0:02:42.5]} 11... Bxd5 {[%clk 0:02:54.9]} 12. Bxd5 {[%clk 0:02:42.7]}
12... Bg7 {[%clk 0:02:49.6]} 13. c3 {[%clk 0:02:41.4]} 13... O-O {[%clk
0:02:47.6]} 14. h4 {[%clk 0:02:39.5]} 14... Nd8 {[%clk 0:02:42]} 15. h5 {[%clk
0:02:38.5]} 15... g5 {[%clk 0:02:41.7]} 16. Ng3 {[%clk 0:02:37.8]} 16... c6
{[%clk 0:02:41.1]} 17. Bb3 {[%clk 0:02:37.3]} 17... Qf6 {[%clk 0:02:38.9]} 18.
Nf5 {[%clk 0:02:36.6]} 18... Ne6 {[%clk 0:02:25.5]} 19. g3 {[%clk 0:02:34.9]}
19... Rad8 {[%clk 0:02:19]} 20. O-O-O {[%clk 0:02:33.2]} 20... Nc5 {[%clk
0:02:11.6]} 21. Bc2 {[%clk 0:02:31]} 21... d5 {[%clk 0:02:04.9]} 22. Qe3 {[%clk
0:02:17.3]} 22... d4 {[%clk 0:02:02.4]} 23. cxd4 {[%clk 0:02:14.5]} 23... exd4
{[%clk 0:02:03.3]} 24. Qe2 {[%clk 0:02:14.2]} 24... Rfe8 {[%clk 0:02:01.2]} 25.
Qd2 {[%clk 0:02:09.9]} 25... b6 {[%clk 0:01:52.7]} 26. f4 {[%clk 0:02:09.7]}
26... a5 {[%clk 0:01:44.8]} 27. Rdf1 {[%clk 0:02:09.3]} 27... a4 {[%clk
0:01:34.5]} 28. Rf2 {[%clk 0:01:59.6]} 28... b5 {[%clk 0:01:20.1]} 29. Rhf1
{[%clk 0:01:57.4]} 29... Rd7 {[%clk 0:01:11.8]} 30. Kb1 {[%clk 0:01:35.2]} 30...
Ne6 {[%clk 0:01:03.7]} 31. Bd1 {[%clk 0:01:31.8]} 31... c5 {[%clk 0:00:57.7]}
32. Bg4 {[%clk 0:01:31]} 32... c4 {[%clk 0:00:50.8]} 33. e5 {[%clk 0:01:31.1]}
33... Qd8 {[%clk 0:00:49.4]} 34. Nxg7 {[%clk 0:01:06.7]} 34... Kxg7 {[%clk
0:00:48.7]} 35. f5 {[%clk 0:01:06.3]} 35... Nc5 {[%clk 0:00:49.2]} 36. f6+
{[%clk 0:01:06.2]} 36... Kg8 {[%clk 0:00:48.3]} 37. Bxd7 {[%clk 0:00:59.8]}
37... Qxd7 {[%clk 0:00:49.2]} 38. Rf5 {[%clk 0:00:56.5]} 38... c3 {[%clk
0:00:13.7]} 39. Rxg5+ {[%clk 0:00:54.5]} 39... Kh8 {[%clk 0:00:12.7]} 40. Rg8+
{[%clk 0:00:44.9]} 40... Kxg8 {[%clk 0:00:11.7]} 41. Qxh6 {[%clk 0:00:44.3]}
41... Qg4 {[%clk 0:00:08.5]} 42. a3 {[%clk 0:00:15.5]} 42... Rxe5 {[%clk
0:00:05.9]} 43. Ka2 {[%clk 0:00:09.8]} 43... Qg5 {[%clk 0:00:05.8]} 0-1